bitfinex/quotes_SOLUSD_20250118
["timestamp","ask_amount","ask_price","bid_price","bid_amount"]
[1737162166832,24.5497,219.79,219.76,3.92]
[1737162167962,24.5497,219.79,219.75,0.03]
[1737162168177,35.9241,219.79,219.77,3.92]
[1737162171456,35.9241,219.79,219.75,0.03]
[1737162171668,35.9241,219.79,219.77,3.92]
[1737162174077,35.9241,219.79,219.76,3.92]
[1737162176239,35.9241,219.79,219.7,0.03]
[1737162176240,35.9871,219.79,219.77,3.92]
[1737162176637,35.9871,219.79,219.7,0.03]
[1737162176854,20.0,219.74,219.7,3.95]
[1737162177035,0.6819679,219.73,219.7,3.95]
[1737162177235,0.6819679,219.73,219.7,3.92]
[1737162177644,0.6819679,219.73,219.71,3.92]
[1737162177854,4.5512,219.72,219.71,3.92]
[1737162178235,4.5512,219.72,219.68,3.92]
[1737162178236,15.9293,219.72,219.68,3.92]
[1737162179677,11.3781,219.72,219.68,3.92]
[1737162179881,11.3781,219.72,219.61,4.0981]
[1737162180048,12.0600679,219.72,219.62,3.92]
[1737162180246,12.0600679,219.72,219.59,13.19079747]
[1737162180457,12.0600679,219.72,219.6,3.92]
[1737162182168,16.6112679,219.72,219.6,3.92]
[1737162182465,16.6112679,219.72,219.61,3.92]
[1737162182668,16.6112679,219.72,219.59,12.69079747]
[1737162182968,16.6112679,219.72,219.6,3.92]
[1737162183163,16.6112679,219.72,219.59,12.69079747]
[1737162183164,20.0,219.69,219.59,12.69079747]
[1737162183489,0.6819679,219.68,219.61,3.92]
[1737162183779,20.0,219.69,219.61,3.92]
[1737162183969,0.6819679,219.68,219.61,3.92]
[1737162184152,4.5522,219.67,219.61,3.92]
[1737162184350,0.6819679,219.66,219.59,12.69079747]
[1737162184664,0.6819679,219.66,219.62,3.92]
[1737162184871,15.9329,219.67,219.62,3.92]
[1737162185369,0.6819679,219.66,219.62,3.92]
[1737162185574,0.6819679,219.66,219.59,12.69079747]
[1737162185777,0.6819679,219.66,219.6,3.92]
[1737162186164,4.5526,219.65,219.6,3.92]
[1737162187458,0.6819679,219.64,219.6,3.92]
[1737162188142,4.5531,219.63,219.57,0.03]
[1737162188342,4.5531,219.63,219.58,3.92]
[1737162188573,4.5531,219.63,219.59,3.92]
[1737162188875,4.5531,219.63,219.59,3.95]
[1737162189470,4.5529,219.64,219.59,3.95]
[1737162189771,24.5529,219.64,219.59,3.95]
[1737162190657,4.5521,219.68,219.59,8.0484]
[1737162191546,20.0,219.7,219.59,8.0484]
[1737162191742,20.0,219.69,219.59,8.0484]
[1737162191948,1.6287,219.72,219.59,8.0484]
[1737162192172,4.6142,219.72,219.59,15.72827617]
[1737162192371,4.6142,219.72,219.59,8.73118553]
[1737162192557,4.6142,219.72,219.59,8.0484]
[1737162193074,24.6142,219.72,219.59,18.2947]
[1737162193445,24.6142,219.72,219.59,8.0484]
[1737162193651,0.6819679,219.71,219.59,8.0484]
[1737162195178,25.2961679,219.72,219.59,8.0484]
[1737162195380,20.0,219.71,219.59,8.0484]
[1737162197576,4.5516,219.7,219.59,8.0484]
[1737162198166,4.5516,219.7,219.59,0.03]
[1737162198167,20.0,219.67,219.59,0.03]
[1737162198372,20.0,219.67,219.6,3.92]
[1737162200068,24.5524,219.66,219.6,3.92]
[1737162200470,20.0,219.67,219.6,3.92]
[1737162200669,20.0,219.67,219.6,8.0183]
[1737162201182,20.0,219.67,219.6,3.92]
[1737162202362,4.5524,219.66,219.6,3.92]
[1737162204665,4.5524,219.66,219.61,3.92]
[1737162204871,0.6819679,219.65,219.61,3.92]
[1737162205261,15.9336,219.66,219.61,3.92]
[1737162205654,31.3812,219.66,219.59,0.03]
[1737162205898,12.0631679,219.66,219.6,3.92]
[1737162206560,12.0631679,219.66,219.59,0.03]
[1737162206879,20.0,219.63,219.61,3.92]
[1737162207181,0.6819679,219.62,219.59,0.03]
[1737162207883,0.6819679,219.62,219.58,3.92]
[1737162208754,0.6819679,219.62,219.57,0.03]
[1737162208755,15.9373,219.61,219.57,0.03]
[1737162208966,0.6819679,219.6,219.57,0.03]
[1737162209365,0.6819679,219.6,219.55,3.92]
[1737162209772,20.0,219.58,219.55,3.92]
[1737162210765,4.5543,219.57,219.55,3.92]
[1737162211571,4.5543,219.57,219.48,4.1005]
[1737162211772,4.5543,219.57,219.49,3.92]
[1737162212798,4.5543,219.57,219.55,0.03]
[1737162215194,24.5541,219.58,219.55,0.03]
[1737162215395,20.0,219.58,219.55,0.03]
[1737162215605,4.5529,219.64,219.55,0.03]
[1737162215783,20.0,219.62,219.55,0.03]
[1737162216081,4.5529,219.64,219.55,0.03]
[1737162216682,15.9351,219.64,219.55,0.03]
[1737162216984,20.0,219.61,219.55,0.03]
[1737162217383,4.5537,219.6,219.55,0.03]
[1737162219087,11.3839,219.61,219.55,0.03]
[1737162220193,20.0,219.63,219.55,0.03]
[1737162220389,20.0,219.62,219.55,0.03]
[1737162220595,15.9343,219.65,219.55,0.03]
[1737162220808,4.5526,219.65,219.55,0.03]
[1737162221099,24.5526,219.65,219.55,0.03]
[1737162221472,24.5526,219.65,219.55,6.2216]
[1737162222596,24.5526,219.65,219.55,10.3207]
[1737162224008,24.6156,219.65,219.55,10.3207]
[1737162224377,0.6819679,219.64,219.55,6.2216]
[1737162224570,35.9973,219.65,219.55,6.2216]
[1737162226110,0.6819679,219.64,219.56,3.92]
[1737162226312,20.0,219.62,219.56,3.92]
[1737162227995,20.0,219.62,219.57,3.92]
[1737162229188,16.6177679,219.63,219.57,3.92]
[1737162229897,16.6177679,219.63,219.55,0.03]
[1737162230087,16.6177679,219.63,219.56,3.92]
[1737162230494,20.0,219.6,219.56,3.92]
[1737162230704,20.6819679,219.6,219.56,3.92]
[1737162231688,20.0,219.6,219.56,3.92]
[1737162232095,4.5539,219.59,219.56,3.92]
[1737162233274,20.0,219.56,219.55,0.03]
[1737162233480,20.0,219.56,219.53,3.92]
[1737162234000,20.0,219.56,219.44,4.1011]
[1737162234001,20.0,219.56,219.54,3.92]
[1737162234390,15.9387,219.59,219.54,3.92]
[1737162234795,0.6819679,219.58,219.54,3.92]
[1737162235304,4.5543,219.57,219.54,3.92]
[1737162237193,4.5541,219.58,219.54,3.92]
[1737162240932,0.6819679,219.57,219.54,3.92]
[1737162241516,16.6213679,219.58,219.54,3.92]
[1737162241917,15.9394,219.58,219.54,3.92]
[1737162242736,16.6213679,219.58,219.54,3.92]
[1737162244714,15.9394,219.58,219.54,3.92]
[1737162244915,4.5541,219.58,219.54,3.92]
[1737162245305,24.5541,219.58,219.54,3.92]
[1737162246335,24.5541,219.58,219.54,3.95]
[1737162248046,24.5541,219.58,219.55,3.92]
[1737162250541,16.6173679,219.64,219.55,3.92]
[1737162250703,20.0,219.61,219.55,3.92]
[1737162251205,1.5994,219.51,219.38,7.11774471]
[1737162251406,15.946,219.49,219.38,7.11774471]
[1737162251624,20.0,219.46,219.38,7.11774471]
[1737162251819,0.6819679,219.45,219.38,7.11774471]
[1737162252012,15.946,219.49,219.38,7.11774471]
[1737162252013,0.6819679,219.48,219.38,7.11774471]
[1737162252329,20.0,219.46,219.36,4.06]
[1737162252510,20.0,219.46,219.37,4.06]
[1737162253026,7.01418442,219.45,219.37,4.06]
[1737162253529,4.5568,219.45,219.37,4.06]
[1737162254112,5.2387679,219.45,219.37,4.06]
[1737162254304,16.6308679,219.45,219.37,4.06]
[1737162254722,23.64505232,219.45,219.37,4.06]
[1737162255207,23.64505232,219.45,219.38,4.06]
[1737162255618,7.01418442,219.43,219.39,4.06]
[1737162255823,4.5574,219.42,219.39,4.06]
[1737162256822,25.2393679,219.42,219.3,1.5912]
[1737162257022,25.2393679,219.42,219.31,4.06]
[1737162257226,4.5574,219.42,219.31,4.06]
[1737162257419,20.0,219.41,219.31,4.06]
[1737162257619,4.5578,219.4,219.32,4.06]
[1737162258023,4.5578,219.4,219.3,1.5912]
[1737162258235,0.6819679,219.39,219.33,4.06]
[1737162259141,0.6819679,219.39,219.38,0.03]
[1737162259343,0.6819679,219.39,219.36,4.06]
[1737162259633,4.5583,219.38,219.36,4.06]
[1737162260042,4.5583,219.38,219.35,4.06]
[1737162260727,4.5574,219.42,219.35,4.06]
[1737162261117,20.0,219.41,219.35,4.06]
[1737162261848,4.5578,219.4,219.35,4.06]
[1737162262930,4.557,219.44,219.35,4.06]
[1737162263333,7.01418442,219.48,219.35,8.163]
[1737162263628,16.6293679,219.47,219.35,4.06]
[1737162265324,20.0,219.44,219.35,4.06]
[1737162265519,0.6819679,219.43,219.35,4.06]
[1737162266119,4.5574,219.42,219.35,4.06]
[1737162267145,0.6819679,219.41,219.36,4.06]
[1737162269253,4.5578,219.4,219.36,4.06]
[1737162273152,4.5576,219.41,219.36,4.06]
[1737162273448,20.0,219.38,219.36,4.06]
[1737162273660,20.0,219.38,219.36,4.1]
[1737162274951,4.558,219.39,219.3,4.1039]
[1737162275150,4.558,219.39,219.36,4.08]
[1737162277031,4.5578,219.4,219.36,4.08]
[1737162277649,0.6819679,219.39,219.36,4.08]
[1737162278350,0.6819679,219.39,219.34,4.1]
[1737162279332,4.5583,219.38,219.34,4.1]
[1737162281553,20.0,219.4,219.34,4.1]
[1737162282058,0.6819679,219.39,219.34,4.1]
[1737162282558,16.6336679,219.41,219.34,4.1]
[1737162282745,15.9517,219.41,219.34,4.1]
[1737162283146,4.5576,219.41,219.34,4.1]
[1737162283347,4.5576,219.41,219.34,4.13]
[1737162283554,0.063,219.4,219.34,4.13]
[1737162284062,0.063,219.4,219.34,4.1]
[1737162284848,0.6819679,219.39,219.34,4.1]
[1737162285161,20.6819679,219.39,219.34,4.1]
[1737162285658,20.6819679,219.39,219.34,4.08]
[1737162285963,0.6819679,219.39,219.34,4.08]
[1737162286157,4.5583,219.38,219.34,4.08]
[1737162286342,0.6819679,219.37,219.34,4.08]
[1737162287662,4.5583,219.38,219.34,4.08]
[1737162288043,0.6819679,219.37,219.29,1.5912]
[1737162288446,20.0,219.36,219.3,4.1]
[1737162288668,0.6819679,219.35,219.3,4.1]
[1737162289565,4.5591,219.34,219.3,4.1]
[1737162290466,0.6819679,219.33,219.3,4.1]
[1737162291368,4.5595,219.32,219.3,4.1]
[1737162291863,4.5595,219.32,219.23,4.1052]
[1737162292069,4.5595,219.32,219.24,4.1]
[1737162292971,12.0795679,219.35,219.24,5.7466]
[1737162293171,4.5591,219.34,219.24,5.7466]
[1737162294277,4.5591,219.34,219.24,9.8516]
[1737162295381,4.5591,219.34,219.24,9.8816]
[1737162299279,24.5597,219.32,219.24,1.6766]
[1737162299580,4.5597,219.32,219.25,4.08]
[1737162300766,4.5591,219.34,219.25,4.08]
[1737162302778,4.5595,219.32,219.25,4.08]
[1737162304086,11.57368442,219.32,219.25,4.08]
[1737162307985,11.57368442,219.32,219.25,4.11]
[1737162311278,11.57368442,219.32,219.25,0.03]
[1737162311493,11.57368442,219.32,219.26,4.06]
[1737162311700,4.5595,219.32,219.26,4.06]
[1737162314700,5.2414679,219.32,219.26,4.06]
[1737162315233,16.6402679,219.32,219.27,4.06]
[1737162315904,23.65445232,219.32,219.27,4.06]
[1737162317812,23.65445232,219.32,219.25,0.03]
[1737162317813,25.31905232,219.32,219.25,0.03]
[1737162318115,7.01418442,219.3,219.25,4.09]
[1737162318815,7.01418442,219.29,219.25,4.09]
[1737162319019,11.57428442,219.29,219.25,4.09]
[1737162319326,7.01418442,219.28,219.25,4.09]
[1737162320315,11.57468442,219.28,219.25,4.09]
[1737162320517,11.57468442,219.28,219.26,4.04]
[1737162321320,11.57468442,219.28,219.25,4.04]
[1737162324819,11.57458442,219.28,219.17,7.02211968]
[1737162325115,7.01418442,219.28,219.24,4.04]
[1737162325435,7.01418442,219.28,219.25,1.59]
[1737162325595,7.01418442,219.28,219.25,9.29622771]
[1737162325793,7.01418442,219.29,219.25,9.29622771]
[1737162326720,7.01418442,219.37,219.26,14.3664]
[1737162327108,7.07718442,219.38,219.26,14.3664]
[1737162327309,11.63548442,219.38,219.26,14.3664]
[1737162327902,11.63548442,219.38,219.27,0.68380244]
[1737162328311,11.63548442,219.38,219.26,10.2617]
[1737162328504,11.63548442,219.38,219.27,4.1045]
[1737162329208,7.07718442,219.38,219.29,20.0]
[1737162330122,7.07718442,219.38,219.28,0.68375731]
[1737162330519,7.07718442,219.38,219.29,4.1041]
[1737162330713,0.063,219.38,219.29,4.1041]
[1737162331305,7.07718442,219.38,219.29,4.1041]
[1737162331823,0.063,219.38,219.3,20.0]
[1737162332002,0.063,219.38,219.3,28.1742]
[1737162332632,0.063,219.38,219.31,4.1037]
[1737162334437,0.063,219.38,219.32,4.04]
[1737162335817,0.063,219.38,219.33,4.02]
[1737162337331,0.063,219.38,219.34,0.68365744]
[1737162337941,0.063,219.38,219.35,4.103]
[1737162339623,0.063,219.38,219.36,0.68357766]
[1737162340135,0.063,219.38,219.37,4.1026]
[1737162340639,0.063,219.38,219.37,4.02]
[1737162342937,0.063,219.38,219.31,4.1037]
[1737162343129,0.063,219.38,219.32,4.02]
[1737162344246,0.063,219.38,219.32,8.1235]
[1737162347023,0.063,219.38,219.33,7.70589529]
[1737162347249,0.063,219.38,219.32,18.3824]
[1737162349744,0.063,219.38,219.32,25.40451968]
[1737162353542,0.063,219.38,219.32,18.3824]
[1737162356452,0.063,219.38,219.32,25.40451968]
[1737162356750,0.063,219.38,219.34,4.1032]
[1737162357727,0.063,219.38,219.34,14.3612]
[1737162360335,0.063,219.38,219.35,4.0]
[1737162361649,0.063,219.38,219.36,4.1028]
[1737162363258,0.063,219.38,219.35,4.0]
[1737162363435,0.063,219.38,219.36,3.98]
[1737162363632,0.063,219.38,219.3,49.18]
[1737162363959,0.063,219.38,219.31,3.98]
[1737162364942,0.063,219.38,219.31,8.0837]
[1737162366074,0.063,219.38,219.31,3.98]
[1737162366945,1.6565,219.37,219.3,49.18]
[1737162367357,1.6565,219.37,219.31,4.02]
[1737162367551,20.0,219.36,219.3,49.18]
[1737162367758,20.0,219.36,219.31,4.02]
[1737162368341,5.2408679,219.35,219.27,0.03]
[1737162368546,5.2408679,219.35,219.28,4.02]
[1737162368749,5.2408679,219.35,219.27,0.03]
[1737162368963,1.6565,219.33,219.28,4.02]
[1737162369141,20.0,219.31,219.29,4.02]
[1737162369345,0.6819679,219.3,219.28,4.02]
[1737162370542,4.5601,219.29,219.28,4.02]
[1737162373086,20.0,219.28,219.27,0.03]
[1737162373249,20.6819679,219.28,219.27,0.03]
[1737162373883,0.6819679,219.28,219.27,0.03]
[1737162374683,5.2422679,219.28,219.27,0.03]
[1737162378052,5.2422679,219.28,219.25,4.05]
[1737162378879,5.2422679,219.28,219.25,0.03]
[1737162379055,6.4346,219.26,219.23,4.0]
[1737162379257,0.6819679,219.25,219.23,4.0]
[1737162380469,0.6819679,219.25,219.16,49.18]
[1737162380470,0.6819679,219.25,219.22,4.0]
[1737162380867,0.6819679,219.25,219.19,4.0]
[1737162381068,15.9642,219.24,219.19,4.0]
[1737162381269,0.6819679,219.23,219.19,4.0]
[1737162381682,0.6819679,219.23,219.12,14.09405917]
[1737162381860,1.6363,219.22,219.13,4.0]
[1737162382059,0.6819679,219.21,219.13,4.0]
[1737162383282,4.562,219.2,219.04,10.2716]
[1737162383459,0.6819679,219.19,219.05,4.0]
[1737162384482,0.6819679,219.19,219.04,10.2716]
[1737162384655,4.5624,219.18,219.06,4.0]
[1737162384859,5.2443679,219.18,219.06,4.0]
[1737162385075,5.2443679,219.18,219.04,14.3804]
[1737162385275,5.2443679,219.18,219.07,4.0]
[1737162386976,16.6504679,219.18,219.07,4.0]
[1737162387185,23.0850679,219.18,219.07,4.0]
[1737162387764,23.0850679,219.18,219.03,0.03]
[1737162387765,20.0,219.15,219.03,0.03]
[1737162387959,16.6533679,219.14,219.04,4.0]
[1737162391190,16.6533679,219.14,219.04,8.1088]
[1737162392057,16.6533679,219.14,219.03,0.03]
[1737162392259,20.0,219.11,219.03,0.03]
[1737162392464,6.2742,219.09,219.04,4.03]
[1737162393382,4.5645,219.08,219.04,4.03]
[1737162394583,6.2742,219.09,219.04,4.03]
[1737162394969,10.8386,219.09,219.04,4.03]
[1737162396085,4.5637,219.12,219.04,4.03]
[1737162396303,4.5637,219.12,219.04,8.1388]
[1737162408802,4.5637,219.12,219.0,7.02211968]
[1737162409101,4.5637,219.12,219.05,3.98]
[1737162409405,5.2456679,219.12,219.05,3.98]
[1737162409588,4.5637,219.12,219.05,3.98]
[1737162413989,4.5637,219.12,219.05,8.0885]
[1737162415706,4.5637,219.12,219.05,3.98]
[1737162419011,5.2456679,219.12,219.05,3.98]
[1737162419209,5.2456679,219.12,219.04,0.03]
[1737162419423,5.2456679,219.12,219.06,3.98]
[1737162422811,5.2456679,219.12,219.04,0.03]
[1737162423019,5.2456679,219.12,219.07,3.98]
[1737162423928,20.0,219.09,219.04,0.03]
[1737162424219,20.6819679,219.09,219.05,3.98]
[1737162424596,20.0,219.09,219.05,3.98]
[1737162425018,0.6819679,219.11,219.05,3.98]
[1737162425019,15.9749,219.1,219.05,3.98]
[1737162425317,15.9749,219.1,219.04,4.03]
[1737162426517,6.4363,219.08,219.04,0.03]
[1737162426727,1.524,219.06,219.04,0.03]
[1737162427422,4.5651,219.05,219.04,0.03]
[1737162430224,4.5651,219.05,219.04,4.01]
[1737162434108,6.0889,219.06,219.04,4.01]
[1737162438905,4.5649,219.06,219.04,4.01]
[1737162439432,7.01418442,219.07,219.04,4.01]
[1737162439644,11.57888442,219.07,219.04,4.01]
[1737162440110,4.5647,219.07,219.04,4.01]
[1737162440310,11.57868442,219.08,219.04,4.01]
[1737162440525,7.01418442,219.08,219.04,4.01]
[1737162441034,7.01418442,219.08,219.04,8.1188]
[1737162441210,7.01418442,219.08,219.04,4.01]
[1737162441536,7.01418442,219.08,219.04,8.1186]
[1737162441720,7.01418442,219.1,219.04,8.1186]
[1737162442034,11.57838442,219.1,219.04,4.01]
[1737162442415,4.5642,219.1,219.04,4.01]
[1737162444031,11.57838442,219.1,219.04,4.01]
[1737162445930,7.01418442,219.1,219.04,8.1188]
[1737162446530,11.57808442,219.11,219.04,8.1188]
[1737162447822,7.01418442,219.11,219.04,8.1188]
[1737162448533,11.57808442,219.11,219.04,8.1188]
[1737162452224,11.57808442,219.11,219.04,4.01]
[1737162452421,11.57808442,219.11,219.04,0.03]
[1737162452626,11.57808442,219.11,219.05,3.98]
[1737162452827,7.01418442,219.1,219.05,3.98]
[1737162453034,7.69615232,219.1,219.05,3.98]
[1737162453243,1.5554,219.09,219.05,3.98]
[1737162453619,2.2373679,219.09,219.05,3.98]
[1737162454244,11.57868442,219.08,219.05,3.98]
[1737162454630,22.98998442,219.08,219.05,3.98]
[1737162454830,7.01418442,219.07,219.05,3.98]
[1737162455343,7.01418442,219.07,219.04,3.96]
[1737162455538,17.3316988,219.07,219.04,3.96]
[1737162456034,11.68091033,219.05,219.04,3.96]
[1737162459550,11.68091033,219.05,218.95,10.81912543]
[1737162459729,11.68091033,219.05,218.92,7.7582]
[1737162459730,20.0,219.02,218.92,7.7582]
[1737162460038,0.6819679,219.04,218.93,3.96]
[1737162460427,20.0,219.02,218.93,3.96]
[1737162460627,7.11581033,219.01,218.93,3.96]
[1737162461063,7.11581033,219.01,218.94,3.96]
[1737162461244,5.2481679,219.0,218.89,4.1115]
[1737162461543,4.5662,219.0,218.95,3.96]
[1737162464138,7.79777823,219.01,218.95,3.96]
[1737162464357,7.11581033,219.01,218.95,3.96]
[1737162464534,11.68191033,219.01,218.95,3.96]
[1737162465119,4.5661,219.01,218.95,3.96]
[1737162466950,7.11581033,219.03,218.95,3.96]
[1737162467155,4.5657,219.02,218.95,3.99]
[1737162468544,7.11581033,219.03,218.95,8.1004]
[1737162469451,4.5654,219.04,218.95,8.1004]
[1737162469948,4.5651,219.05,218.95,8.1004]
[1737162471447,7.11581033,219.06,218.95,14.7291]
[1737162471953,11.68071033,219.06,218.95,25.0054]
[1737162472449,4.5649,219.06,218.95,25.0054]
[1737162472951,4.5647,219.07,218.95,25.0054]
[1737162473339,4.5647,219.07,218.95,32.02751968]
[1737162474028,4.5643,219.09,218.95,25.0054]
[1737162474561,4.5643,219.09,218.96,7.02211968]
[1737162474855,4.5643,219.09,218.95,32.02751968]
[1737162476131,4.5643,219.09,218.96,7.02211968]
[1737162476427,4.5643,219.09,218.97,4.1101]
[1737162478142,4.5643,219.09,218.96,4.1103]
[1737162478950,0.6819679,219.08,218.96,4.1103]
[1737162479754,7.79777823,219.08,218.96,4.1103]
[1737162479978,15.9765,219.07,218.95,6.6587]
[1737162480260,4.5647,219.07,218.96,3.94]
[1737162480963,11.68051033,219.07,218.96,3.94]
[1737162481561,11.68051033,219.07,218.97,4.1101]
[1737162482436,11.68051033,219.07,218.95,6.6587]
[1737162482630,11.68051033,219.07,218.96,8.0503]
[1737162483359,0.6819679,219.06,218.96,3.94]
[1737162484164,7.79777823,219.06,218.96,3.94]
[1737162484733,4.5651,219.05,218.96,3.94]
[1737162485363,11.68091033,219.05,218.96,3.94]
[1737162486652,11.68091033,219.05,218.96,8.0502]
[1737162487652,4.5651,219.05,218.96,8.0502]
[1737162488258,11.68051033,219.07,218.96,8.0502]
[1737162489347,4.5647,219.07,218.96,8.0502]
[1737162491639,4.6277,219.07,218.96,8.0502]
[1737162491967,11.74351033,219.07,218.96,8.0502]
[1737162494465,4.6277,219.07,218.96,8.0502]
[1737162495169,11.74351033,219.07,218.96,8.0502]
[1737162497664,7.11581033,219.06,218.96,8.0502]
[1737162497872,4.5651,219.05,218.96,8.0502]
[1737162500777,4.5651,219.05,218.96,3.94]
[1737162500977,11.68091033,219.05,218.96,3.94]
[1737162501751,7.11581033,219.04,218.96,3.94]
[1737162502666,7.11581033,219.04,218.97,3.94]
[1737162502887,4.5655,219.03,218.97,3.94]
[1737162503372,4.5655,219.03,218.98,3.94]
[1737162503886,7.11581033,219.02,218.99,3.94]
[1737162504565,4.566,219.01,218.99,3.94]
[1737162504884,4.566,219.01,219.0,3.94]
[1737162505576,11.68181033,219.01,219.0,3.94]
[1737162505979,11.68181033,219.01,218.95,0.03]
[1737162506181,11.68181033,219.01,218.96,3.94]
[1737162507084,0.6819679,219.0,218.95,0.03]
[1737162507262,12.36377823,219.01,218.97,3.94]
[1737162507463,23.77877823,219.01,218.97,3.94]
[1737162508080,23.09681033,219.01,218.97,3.94]
[1737162508285,7.11581033,218.99,218.97,3.94]
[1737162508974,4.5666,218.98,218.97,3.94]
[1737162511084,7.79777823,219.0,218.97,3.94]
[1737162511292,4.5664,218.99,218.97,3.94]
[1737162512789,4.5664,218.99,218.95,0.03]
[1737162512981,4.5664,218.99,218.97,3.94]
[1737162517602,4.5662,219.0,218.97,3.94]
[1737162519680,7.11581033,219.02,218.97,3.94]
[1737162519873,4.566,219.01,218.97,3.94]
[1737162523798,0.6819679,219.0,218.97,3.94]
[1737162523986,4.5664,218.99,218.97,3.94]
[1737162526899,0.6819679,219.01,218.97,3.94]
[1737162527079,4.5662,219.0,218.97,3.94]
[1737162527274,0.03,218.99,218.97,3.94]
[1737162529888,0.03,218.99,218.97,8.05]
[1737162530210,0.03,218.99,218.97,3.94]
[1737162530906,0.03,218.99,218.98,3.94]
[1737162534584,0.03,218.99,218.95,0.03]
[1737162534805,0.03,218.99,218.96,3.94]
[1737162535010,0.03,218.99,218.97,3.94]
[1737162537111,0.03,218.99,218.95,0.03]
[1737162537298,20.0,218.93,218.76,7.02211968]
[1737162537495,20.0,218.93,218.8,7.02211968]
[1737162538110,2.2625679,218.95,218.8,7.02211968]
[1737162538304,0.6819679,218.93,218.77,3.94]
[1737162538491,4.5678,218.92,218.78,11.13561968]
[1737162538995,4.5678,218.92,218.8,7.02211968]
[1737162539203,4.5678,218.92,218.81,7.02211968]
[1737162540198,4.5678,218.92,218.82,4.1129]
[1737162540425,11.68341033,218.94,218.83,7.02211968]
[1737162540603,4.5676,218.94,218.82,17.62741968]
[1737162541515,7.11581033,218.95,218.85,7.02211968]
[1737162541903,11.68311033,218.95,218.85,7.02211968]
[1737162542106,11.68311033,218.95,218.84,11.13461968]
[1737162542308,4.5673,218.95,218.84,11.13461968]
[1737162542505,4.5673,218.95,218.84,4.1125]
[1737162542710,5.2492679,218.95,218.84,4.1125]
[1737162543224,4.5673,218.95,218.84,4.1125]
[1737162543520,4.567,218.96,218.83,4.1127]
[1737162544420,11.68281033,218.96,218.83,4.1127]
[1737162544819,4.5674,218.94,218.83,4.1127]
[1737162545023,4.5674,218.94,218.84,3.94]
[1737162546825,4.5674,218.94,218.84,8.0524]
[1737162548421,7.11581033,218.96,218.84,15.07451968]
[1737162548422,11.68281033,218.96,218.84,15.07451968]
[1737162548611,11.68281033,218.96,218.86,7.02211968]
[1737162548921,4.5666,218.98,218.85,7.02211968]
[1737162550229,4.5666,218.98,218.86,11.13431968]
[1737162550723,0.03,218.94,218.86,11.13431968]
[1737162551520,0.03,218.94,218.87,7.02211968]
[1737162552528,0.03,218.94,218.86,7.02211968]
[1737162553007,0.03,218.94,218.85,14.3934]
[1737162553200,0.03,218.94,218.85,21.41551968]
[1737162555050,0.03,218.94,218.87,4.112]
[1737162559034,0.03,218.94,218.86,4.1122]
[1737162559932,0.03,218.94,218.87,3.94]
[1737162563422,0.03,218.94,218.88,4.1118]
[1737162566136,0.03,218.94,218.87,3.94]
[1737162568935,0.03,218.94,218.86,0.063]
[1737162569115,0.03,218.94,218.88,3.94]
[1737162572821,0.03,218.94,218.89,3.94]
[1737162574531,0.03,218.94,218.86,0.063]